{"text_format":"1","workbook":"xlsx","n_sheets":1,"sheets":["Checklist"],"not_rendered":{"charts":0,"images":1,"macros":1,"external_links":0,"defined_names":0,"comments":0,"pivot_tables":0},"unopened":[],"bounds":{"document_bytes":16777216,"sheet_cells":100000,"rows_first":2000,"rows_last":500,"rows_between":2000,"halvings":0,"cell_chars":16384,"cell_head_chars":4096},"cells_cut":0,"cells_raw":0,"read":"whole","date_system":"1900"}

{"sheet":"Checklist","index":0,"n_rows":122,"n_cols":26,"rows_kept":122,"cut":false,"hidden":false,"merged":[[29,0,32,0],[16,0,19,0],[20,1,20,3],[20,4,20,6],[16,5,19,5],[16,2,19,2],[23,5,24,5],[25,0,26,0],[29,2,32,2],[22,0,22,7],[23,2,24,2],[23,0,24,0],[0,1,0,3],[0,4,0,6],[7,1,7,3],[7,4,7,6],[13,8,15,8],[13,2,15,2],[13,5,15,5],[2,2,4,2],[5,2,6,2],[1,0,1,7],[5,5,6,5],[8,0,8,7],[9,0,10,0],[9,2,10,2],[9,5,10,5],[2,0,4,0],[5,0,6,0],[2,4,3,6],[13,0,15,0],[25,5,26,5],[25,2,26,2],[107,18,107,19],[33,0,34,0],[33,2,34,2],[40,0,41,0],[40,2,41,2],[35,5,36,5],[35,2,36,2],[35,0,36,0],[42,3,42,4],[105,18,105,19],[49,0,49,5],[50,0,50,5],[106,18,106,19],[104,18,104,19],[42,6,42,7]]}
[null,"Tasks",null,null,"Resources",null,null,"Check"]
["Preparing Paper",null,null,null,null,null,null,null,"Points","Good?","Better?","Excellent?","N/A?"]
["Pre-registration",null,"Write a pre-registration or registered report and upload on OSF ",null,{"$f":"HYPERLINK(\"https://eur-synclab.github.io/open-science/preregistration.html\", \"SYNC lab wiki - PreReg\")","v":"SYNC lab wiki - PreReg"},null,null,null,null,false,false,false,false]
[]
[null,null,null,null,null,{"$f":"HYPERLINK(\"https://osf.io/5hbsm/\", \"SYNC OSF hub\")","v":"SYNC OSF hub"},null,null,{"$f":"IF(M3 = TRUE,0,IF(L3=TRUE,3,(IF(K3=TRUE,2,IF(J3=TRUE,1,0)))))","v":0}]
["Data Management Plan",null,"Check/write data management plan (DMP) ",null,null,{"$f":"HYPERLINK(\"https://eur-synclab.github.io/data-management/dmp-dpia-info.html\", \"SYNC lab wiki - DMP\")","v":"SYNC lab wiki - DMP"},null,null,null,false,false,false]
[null,null,null,null,null,null,null,null,{"$f":"IF(L6=TRUE,3,(IF(K6=TRUE,2,IF(J6=TRUE,1,0))))","v":0}]
[null,"✅ Good",null,null,"💪 Better",null,null,"🏆 Excellent"]
["Conducting Study"]
["Data collection protocols",null,"Use and store understandable and accessible protocols for data collection, including protocols for participant contact, participant instructions, and data handling.",null,null,{"$f":"HYPERLINK(\"https://eur.data.surfsara.nl/index.php/apps/files/?dir=/&view=sharingin\", \"Researchdrive\")","v":"Researchdrive"},null,null,null,false,false,false,false]
[null,null,null,null,null,null,null,null,{"$f":"IF(M10 = TRUE,0,IF(L10=TRUE,3,(IF(K10=TRUE,2,IF(J10=TRUE,1,0)))))","v":0}]
["Codebook",null,"Keep a codebook that gives an overview all the different measures and the exact content of data files. This includes information like variable names and labels, measurement levels and values.  This can be a template at first and be updated it if changes occur.",null,null,{"$f":"HYPERLINK(\"https://eur-synclab.github.io/data-management/codebooks.html\", \"SYNC lab wiki - Codebook\")","v":"SYNC lab wiki - Codebook"}]
["Logbook",null,"Keep a logbook of all important events that occur during data collection (niet specifieke informatie maar hoe we ermee omgaan)",null,null,{"$f":"HYPERLINK(\"https://eur-synclab.github.io/data-management/data-security.html\", \"SYNC lab wiki - Logbook\")","v":"SYNC lab wiki - Logbook"}]
["Data Storage",null,"Store your data logically and in a safe place from day 1 (according to your DMP)\t",null,null,{"$f":"HYPERLINK(\"https://eur-synclab.github.io/data-management/data-security.html\", \"SYNC lab wiki - Data Storage\")","v":"SYNC lab wiki - Data Storage"},null,null,{"$f":"IF(L14=TRUE,3,(IF(K14=TRUE,2,IF(J14=TRUE,1,0))))","v":0},false,false,false]
[]
[]
["Scripts / Syntax",null,"Use understandable and accessible scripts/syntax for data analyses\t",null,null,{"$f":"HYPERLINK(\"https://eur-synclab.github.io/open-science/open-code.html\", \"SYNC lab wiki - Scripts\")","v":"SYNC lab wiki - Scripts"},null,null,null,false,false,false]
[]
[]
[null,null,null,null,null,null,null,null,{"$f":"IF(L17=TRUE,3,(IF(K17=TRUE,2,IF(J17=TRUE,1,0))))","v":0}]
[null,"✅ Good",null,null,"💪 Better",null,null,"🏆 Excellent"]
["   Readme",null,"Use understandable and accessible Readme to describe research metadata",null,null,{"$f":"HYPERLINK(\"https://eur-synclab.github.io/data-management/types-metadata.html#example-research-metadata\", \"SYNC lab wiki - Readme\")","v":"SYNC lab wiki - Readme"}]
["Writing Manuscript"]
["Version Control",null,"Implement version control when writing your paper/analyzing your data (i.e. using Github or Datalad) ",null,null,{"$f":"HYPERLINK(\"https://eur-synclab.github.io/data-management/vc-principles.html\", \"SYNC lab wiki - Version Control\")","v":"SYNC lab wiki - Version Control"},null,null,null,false,false,false,false]
[null,null,null,null,null,null,null,null,{"$f":"IF(M24 = TRUE,0,IF(L24=TRUE,3,(IF(K24=TRUE,2,IF(J24=TRUE,1,0)))))","v":0}]
["Preprint",null,"Upload your final manuscript as a preprint to PsyArxiv",null,null,{"$f":"HYPERLINK(\"https://eur-synclab.github.io/open-science/open-access-info.html\", \"SYNC lab wiki - Preprint\")","v":"SYNC lab wiki - Preprint"},null,null,null,false,false,false,false]
[null,null,null,null,null,null,null,null,{"$f":"IF(M26 = TRUE,0,IF(L26=TRUE,3,(IF(K26=TRUE,2,IF(J26=TRUE,1,0)))))","v":0}]
["Peer review",null,"Submit your final manuscript for peer review to an Open Access journal (in het allerergste geval op de Repository) ",null,null,{"$f":"HYPERLINK(\"https://www.eur.nl/en/library/research-support/open-access/open-access-eur/publisher-deals\", \"Open Access Journals\")","v":"Open Access Journals"},null,null,null,false,false,false]
["After Publication"]
["Publication package (archive)",null,"Create an archiving publication package for the EUR data repository or DataVerse (according to University guidelines)",null,null,{"$f":"HYPERLINK(\"https://github.com/eur-synclab/publication-package\", \"SYNC lab wiki - Pub Package\")","v":"SYNC lab wiki - Pub Package"},null,null,null,false,false,false]
[null,null,null,null,null,{"$f":"HYPERLINK(\"https://datarepository.eur.nl/\", \"EUR Data Repository\")","v":"EUR Data Repository"}]
[null,null,null,null,null,{"$f":"HYPERLINK(\"https://datarepository.eur.nl/collections/Publication_Package_Familiarity_and_Audience_Effects_on_Giving_A_Functional_Magnetic_Resonance_Imaging_Study_/5131568\", \"Example Suzanne van de Groep\")","v":"Example Suzanne van de Groep"}]
[null,null,null,null,null,"a.\tFinal manuscript\nb.\tTasks and questionnaires\nc.\tRaw data\nd.\tComputer code\ne.\tProcessed data\nf.\tMetadata/additional information\ng.\tEthical Committee Application\t\t\t",null,null,{"$f":"IF(L30=TRUE,3,(IF(K30=TRUE,2,IF(J30=TRUE,1,0))))","v":0}]
["Publication package (public)",null,"Create a public facing publication package for the SYNC Github. Link to publication package in the repository",null,null,{"$f":"HYPERLINK(\"https://github.com/eur-synclab/publication-package\", \"SYNC lab wiki - Pub Package\")","v":"SYNC lab wiki - Pub Package"},null,null,null,false,false,false,false]
[null,null,null,null,null,"a.\tProcessed data\nb.\tVisualized/interactive results",null,null,{"$f":"IF(M34 = TRUE,0,IF(L34=TRUE,3,(IF(K34=TRUE,2,IF(J34=TRUE,1,0)))))","v":0}]
["MRI data",null,"Upload (f)MRI group maps on Neurovault",null,null,{"$f":"HYPERLINK(\"https://neurovault.org/\", \"Neurovault\")","v":"Neurovault"},null,null,null,false,false,false,false]
[null,null,null,null,null,null,null,null,{"$f":"IF(M36 = TRUE,0,IF(L36=TRUE,3,(IF(K36=TRUE,2,IF(J36=TRUE,1,0)))))","v":0}]
["Sync Website",null,"List your published (sync) paper on the SYNC website",null,null,{"$f":"HYPERLINK(\"https://erasmus-synclab.nl/publications/scientific-publications/\", \"SYNC lab website - Publications\")","v":"SYNC lab website - Publications"}]
["Twitter",null,"Write a Twitter thread",null,null,{"$f":"HYPERLINK(\"https://www.twitter.com\", \"Twitter\")","v":"Twitter"}]
["LinkedIn",null,"Write a LinkedIn message",null,null,{"$f":"HYPERLINK(\"https://www.linkedin.com\", \"LinkedIn\")","v":"LinkedIn"}]
["YX insta en website facts",null,"Contact YX team",null,null,{"$f":"HYPERLINK(\"https://www.youngxperts.nl/over-ons/\", \"YoungXperts Webiste\")","v":"YoungXperts Webiste"},null,null,null,false,false,false]
[null,null,null,null,null,{"$f":"HYPERLINK(\"https://www.google.com/url?sa=t&rct=j&q=&esrc=s&source=web&cd=&cad=rja&uact=8&ved=2ahUKEwiZn6Pfv7L6AhVCt6QKHf7mCZ8QFnoECBIQAQ&url=https%3A%2F%2Fwww.instagram.com%2Fyoung_xperts%2F&usg=AOvVaw2yBaA_SEqyE1l0jBcS2z2I\", \"YoungXperts Instagram\")","v":"YoungXperts Instagram"},null,null,{"$f":"IF(L41=TRUE,3,(IF(K41=TRUE,2,IF(J41=TRUE,1,0))))","v":0}]
["Total Open Science Score",":",{"$f":"SUM(Y105,Y106,Y107,Y108,Y109,Y110,Y111,Y112,Y113,Y114,Y115,Y116,Y117,Y118,Y119,Y120,Y121,Y122)*100/18","v":0},"%",null,"You're an …",{"$f":"IF(C43>69,S108,(IF((AND(C43<70,C43>49)),S107,(IF((AND(C43<50,C43>0)),S106,\"\")))))","v":""},null,{"$f":" SUM(I3:I42)","v":0},null,null,null,{"$f":" (COUNTIF(M3:M42, \"TRUE\"))*3","v":0}]
[null,null,null,null,null,null,null,null,null,null,null,null,{"$f":" 42 - M43","v":42}]
[]
[]
[]
[]
[]
[]
[]
[]
[]
[]
[]
[]
[]
[]
[]
[]
[]
[]
[]
[]
[]
[]
[]
[]
[]
[]
[]
[]
[]
[]
[]
[]
[]
[]
[]
[]
[]
[]
[]
[]
[]
[]
[]
[]
[]
[]
[]
[]
[]
[]
[]
[]
[]
[]
[]
[]
[]
[]
[]
[]
[null,null,null,null,null,null,null,null,null,null,null,null,null,null,null,null,null,"Score","Level",null,null,null,null,null,{"$f":"IF(Z105,1,0)","v":0},false]
[null,null,null,null,null,null,null,null,null,null,null,null,null,null,null,null,null,"< 50%","Open Science Apprentice",null,null,null,null,null,{"$f":"IF(Z106,1,0)","v":0},false]
[null,null,null,null,null,null,null,null,null,null,null,null,null,null,null,null,null,"50 - 70%","Open Science Master",null,null,null,null,null,0,false]
[null,null,null,null,null,null,null,null,null,null,null,null,null,null,null,null,null,"> 70%","Open Science Champion",null,null,null,null,null,0,false]
[null,null,null,null,null,null,null,null,null,null,null,null,null,null,null,null,null,null,null,null,null,null,null,null,0,false]
[null,null,null,null,null,null,null,null,null,null,null,null,null,null,null,null,null,null,null,null,null,null,null,null,0,false]
[null,null,null,null,null,null,null,null,null,null,null,null,null,null,null,null,null,null,null,null,null,null,null,null,0,false]
[null,null,null,null,null,null,null,null,null,null,null,null,null,null,null,null,null,null,null,null,null,null,null,null,0,false]
[null,null,null,null,null,null,null,null,null,null,null,null,null,null,null,null,null,null,null,null,null,null,null,null,0,false]
[null,null,null,null,null,null,null,null,null,null,null,null,null,null,null,null,null,null,null,null,null,null,null,null,0,false]
[null,null,null,null,null,null,null,null,null,null,null,null,null,null,null,null,null,null,null,null,null,null,null,null,0,false]
[null,null,null,null,null,null,null,null,null,null,null,null,null,null,null,null,null,null,null,null,null,null,null,null,0,false]
[null,null,null,null,null,null,null,null,null,null,null,null,null,null,null,null,null,null,null,null,null,null,null,null,0,false]
[null,null,null,null,null,null,null,null,null,null,null,null,null,null,null,null,null,null,null,null,null,null,null,null,0,false]
[null,null,null,null,null,null,null,null,null,null,null,null,null,null,null,null,null,null,null,null,null,null,null,null,0,false]
[null,null,null,null,null,null,null,null,null,null,null,null,null,null,null,null,null,null,null,null,null,null,null,null,0,false]
[null,null,null,null,null,null,null,null,null,null,null,null,null,null,null,null,null,null,null,null,null,null,null,null,0,false]
[null,null,null,null,null,null,null,null,null,null,null,null,null,null,null,null,null,null,null,null,null,null,null,null,{"$f":"IF(Z122,1,0)","v":0},false]